bitfinex-derivatives/quotes_BTCF0:USTF0_20210705
["timestamp","ask_amount","ask_price","bid_price","bid_amount"]
[1625529209529,0.37435088,33794.0,33788.0,0.24057544]
[1625529209631,0.37435088,33794.0,33788.0,0.059]
[1625529209729,0.057,33793.0,33784.0,0.24057544]
[1625529209930,0.116,33793.0,33784.0,0.24057544]
[1625529210042,0.175,33793.0,33784.0,0.24057544]
[1625529210532,4.3102,33788.0,33784.0,0.24057544]
[1625529210633,0.69728088,33785.0,33784.0,0.24057544]
[1625529210732,0.81328088,33785.0,33784.0,0.24057544]
[1625529211434,0.81328088,33785.0,33781.0,0.24057544]
[1625529211738,0.81328088,33785.0,33773.0,1.38263804]
[1625529211849,1.37228088,33785.0,33751.0,0.0896]
[1625529211955,1.37228088,33785.0,33748.0,0.2929]
[1625529212088,1.37228088,33785.0,33760.0,2.99905706]
[1625529212186,1.43128088,33785.0,33760.0,2.99905706]
[1625529212305,1.37228088,33785.0,33760.0,2.99905706]
[1625529212387,1.37228088,33785.0,33752.0,1.38120343]
[1625529212605,0.87228088,33785.0,33752.0,1.38120343]
[1625529212686,1.23920176,33760.0,33752.0,1.38120343]
[1625529212987,1.29820176,33760.0,33748.0,0.24057544]
[1625529213087,1.35720176,33760.0,33748.0,0.24057544]
[1625529213185,1.29820176,33760.0,33748.0,0.24057544]
[1625529213685,1.35720176,33760.0,33748.0,0.24057544]
[1625529213790,1.29820176,33760.0,33748.0,0.24057544]
[1625529214191,1.35720176,33760.0,33748.0,0.24057544]
[1625529214289,1.41420176,33760.0,33748.0,0.24057544]
[1625529214791,1.35520176,33760.0,33759.0,0.611]
[1625529215189,1.41420176,33760.0,33759.0,0.611]
[1625529215441,1.35520176,33760.0,33759.0,0.611]
[1625529215548,1.41420176,33760.0,33759.0,0.611]
[1625529215844,1.35520176,33760.0,33759.0,0.552]
[1625529216142,1.41420176,33760.0,33759.0,0.552]
[1625529216343,1.41420176,33760.0,33759.0,0.2009133]
[1625529216546,1.35520176,33760.0,33759.0,0.2009133]
[1625529216642,1.35520176,33760.0,33759.0,0.1419133]
[1625529216740,1.35520176,33760.0,33740.0,0.9401]
[1625529216840,5.0374,33744.0,33740.0,0.9401]
[1625529216941,5.1534,33744.0,33740.0,0.9401]
[1625529217042,5.43494,33744.0,33740.0,0.9401]
[1625529217241,5.37794,33744.0,33740.0,0.9401]
[1625529217340,5.31894,33744.0,33740.0,0.9401]
[1625529217540,5.31894,33744.0,33740.0,0.9991]
[1625529217842,5.25994,33744.0,33740.0,0.9401]
[1625529217941,5.31894,33744.0,33740.0,0.9401]
[1625529218041,5.25994,33744.0,33740.0,0.9401]
[1625529218341,5.31894,33744.0,33740.0,0.9401]
[1625529218441,5.37594,33744.0,33740.0,0.9401]
[1625529218644,0.96230176,33741.0,33740.0,0.9401]
[1625529218741,1.01930176,33741.0,33740.0,0.9401]
[1625529218842,1.07830176,33741.0,33740.0,0.9401]
[1625529218943,1.01930176,33741.0,33740.0,0.9401]
[1625529219042,1.07830176,33741.0,33740.0,0.9401]
[1625529219242,1.07830176,33741.0,33729.0,0.24057544]
[1625529219342,1.07830176,33741.0,33729.0,0.29957544]
[1625529219450,1.07830176,33741.0,33729.0,0.059]
[1625529219547,1.07830176,33741.0,33719.0,0.9778]
[1625529219742,1.13730176,33741.0,33719.0,1.0368]
[1625529220192,1.13730176,33741.0,33719.0,0.059]
[1625529220393,5.2294,33720.0,33719.0,0.059]
[1625529220495,5.56262,33720.0,33719.0,0.059]
[1625529220594,6.28434632,33720.0,33719.0,0.059]
[1625529220895,1.05494632,33720.0,33719.0,0.059]
[1625529221101,0.57379544,33720.0,33719.0,0.059]
[1625529221498,5.51947544,33720.0,33719.0,0.059]
[1625529221999,5.74040544,33720.0,33719.0,0.059]
[1625529222648,5.98098088,33720.0,33719.0,0.059]
[1625529224260,5.98098088,33720.0,33683.0,0.088]
[1625529224361,6.03798088,33720.0,33704.0,1.059]
[1625529224665,6.09698088,33720.0,33704.0,1.0]
[1625529224862,1.28808176,33705.0,33704.0,0.67562898]
[1625529225467,8.176e-05,33705.0,33704.0,0.73462898]
[1625529225565,5.2789,33720.0,33704.0,0.73462898]
[1625529225662,5.3379,33720.0,33704.0,1.05626898]
[1625529226716,5.3379,33720.0,33719.0,0.48115088]
[1625529226816,5.3379,33720.0,33719.0,0.69169088]
[1625529226916,0.059,33720.0,33719.0,0.69169088]
[1625529227868,0.24057544,33732.0,33719.0,0.69169088]
[1625529228525,0.29957544,33732.0,33719.0,0.69169088]
[1625529228651,0.24057544,33732.0,33719.0,0.69169088]
[1625529228740,0.48115088,33720.0,33719.0,0.21054]
[1625529228820,0.48115088,33720.0,33714.0,0.24057544]
[1625529229039,0.24057544,33720.0,33714.0,0.24057544]
[1625529229338,0.24057544,33732.0,33714.0,0.24057544]
[1625529229521,0.35857544,33732.0,33714.0,0.50372544]
[1625529229621,0.24057544,33732.0,33714.0,0.50372544]
[1625529229823,0.24057544,33732.0,33714.0,0.56272544]
[1625529229925,0.29957544,33732.0,33714.0,0.56272544]
[1625529230325,0.24057544,33732.0,33714.0,0.56272544]
[1625529230423,0.29957544,33732.0,33714.0,0.56272544]
[1625529230723,0.29957544,33732.0,33731.0,0.24057544]
[1625529230825,0.24057544,33732.0,33731.0,0.49656544]
[1625529231328,0.29957544,33732.0,33728.0,0.24057544]
[1625529231424,0.29957544,33732.0,33731.0,0.21056]
[1625529231724,0.29957544,33732.0,33728.0,0.09976878]
[1625529231824,0.35857544,33732.0,33731.0,0.3095]
[1625529231923,0.29957544,33732.0,33731.0,0.3095]
[1625529232525,0.29957544,33732.0,33731.0,0.3685]
[1625529232828,0.29957544,33732.0,33731.0,0.3095]
[1625529232976,0.24057544,33732.0,33731.0,0.3685]
[1625529233329,0.24057544,33732.0,33731.0,0.3095]
[1625529233530,0.24057544,33732.0,33731.0,0.3685]
[1625529234283,0.29757544,33732.0,33731.0,0.3685]
[1625529234585,0.24057544,33732.0,33731.0,0.3685]
[1625529235136,0.29757544,33732.0,33731.0,0.3685]
[1625529235236,0.24057544,33732.0,33731.0,0.3685]
[1625529235798,0.29757544,33732.0,33731.0,0.059]
[1625529235887,0.58767544,33732.0,33730.0,0.24057544]
[1625529237289,0.29757544,33732.0,33730.0,0.24057544]
[1625529237386,0.29757544,33732.0,33730.0,0.29957544]
[1625529238591,0.24057544,33732.0,33730.0,0.29957544]
[1625529238692,0.24057544,33732.0,33730.0,0.35857544]
[1625529238791,0.057,33740.0,33730.0,0.35857544]
[1625529238894,0.057,33740.0,33730.0,0.62948544]
[1625529238994,1.10426116,33767.0,33730.0,0.62948544]
[1625529239093,0.059,33748.0,33730.0,0.62948544]
[1625529240096,0.059,33748.0,33731.0,0.00351258]
[1625529240198,0.059,33748.0,33731.0,0.06251258]
[1625529240298,0.059,33748.0,33731.0,0.12151258]
[1625529240598,0.059,33748.0,33732.0,0.00351258]
[1625529240699,0.24057544,33746.0,33744.0,0.24057544]
[1625529240801,0.057,33745.0,33744.0,0.24057544]
[1625529241102,0.057,33745.0,33741.0,0.24057544]
[1625529241200,0.057,33745.0,33741.0,0.29957544]
[1625529241400,0.057,33745.0,33742.0,0.00351282]
[1625529241652,0.057,33745.0,33742.0,0.06251282]
[1625529241751,0.057,33745.0,33742.0,0.00351282]
[1625529241902,0.05548718,33735.0,33734.0,0.24057544]
[1625529242001,0.05548718,33735.0,33734.0,0.29957544]
[1625529242152,0.05548718,33735.0,33734.0,0.35857544]
[1625529242551,0.05548718,33735.0,33734.0,0.31187048]
[1625529242752,0.29606262,33735.0,33734.0,0.31187048]
[1625529243101,0.29606262,33735.0,33734.0,0.37087048]
[1625529243654,0.29606262,33735.0,33734.0,0.31187048]
[1625529244105,0.59306262,33735.0,33734.0,0.31187048]
[1625529245863,0.68086262,33735.0,33734.0,0.31187048]
[1625529245962,0.59306262,33735.0,33734.0,0.31187048]
[1625529246163,0.29606262,33735.0,33734.0,0.31187048]
[1625529246465,0.56071262,33735.0,33734.0,0.31187048]
[1625529246666,0.67671262,33735.0,33734.0,0.01229504]
[1625529246964,0.73571262,33735.0,33734.0,0.01229504]
[1625529247065,0.73571262,33735.0,33725.0,0.24057544]
[1625529247066,0.67671262,33735.0,33726.0,0.01229742]
[1625529247315,0.67671262,33735.0,33734.0,0.01229785]
[1625529247466,0.73571262,33735.0,33734.0,0.01229785]
[1625529247564,0.67671262,33735.0,33734.0,0.01229785]
[1625529247664,0.67671262,33735.0,33726.0,0.01229827]
[1625529247765,0.73571262,33735.0,33726.0,0.01229827]
[1625529247866,0.67671262,33735.0,33734.0,0.01229848]
[1625529247967,0.73571262,33735.0,33734.0,0.01229848]
[1625529248166,0.73571262,33735.0,33723.0,0.01229911]
[1625529248466,0.73571262,33735.0,33734.0,0.01229973]
[1625529248567,0.73571262,33735.0,33720.0,0.01756774]
[1625529248767,1.01930176,33721.0,33720.0,0.01756774]
[1625529248867,1.35490176,33721.0,33720.0,0.01756774]
[1625529248968,1.35490176,33721.0,33720.0,0.02986775]
[1625529249269,1.35490176,33721.0,33716.0,0.01230047]
[1625529249468,1.35490176,33721.0,33720.0,0.01230044]
[1625529249769,1.35490176,33721.0,33717.0,0.01230053]
[1625529250070,1.35490176,33721.0,33709.0,0.01230065]
[1625529250170,1.35490176,33721.0,33709.0,0.07130065]
[1625529250270,1.35490176,33721.0,33709.0,0.01230065]
[1625529250372,1.35490176,33721.0,33709.0,0.07130065]
[1625529250573,1.35490176,33721.0,33710.0,0.01230135]
[1625529250670,1.35490176,33721.0,33710.0,0.07130135]
[1625529250770,0.48115088,33711.0,33710.0,0.07130135]
[1625529250871,0.53815088,33711.0,33710.0,0.07130135]
[1625529250971,0.86636088,33711.0,33710.0,0.07130135]
[1625529252125,0.92536088,33711.0,33710.0,0.07130135]
[1625529252775,1.16593632,33711.0,33710.0,0.07130135]
[1625529253777,1.10893632,33711.0,33710.0,0.07130135]
[1625529253878,1.04993632,33711.0,33710.0,0.07130135]
[1625529254336,0.72172632,33711.0,33710.0,0.07130135]
[1625529254632,0.72172632,33711.0,33710.0,0.13030135]
[1625529254880,0.72172632,33711.0,33710.0,0.37087679]
[1625529255698,0.24057544,33721.0,33710.0,0.37087679]
[1625529255786,0.24057544,33721.0,33710.0,0.58304679]
[1625529255987,0.24057544,33721.0,33711.0,0.01230043]
[1625529256115,0.24057544,33721.0,33711.0,0.07130043]
[1625529256186,0.24057544,33721.0,33711.0,0.13030043]
[1625529256285,0.24057544,33721.0,33711.0,0.14787245]
[1625529256536,0.24057544,33721.0,33712.0,0.01229969]
[1625529256638,0.24057544,33721.0,33712.0,0.13029969]
[1625529256838,0.24057544,33721.0,33718.0,0.24057544]
[1625529256938,0.24057544,33721.0,33718.0,0.52677544]
[1625529257339,0.24057544,33721.0,33719.0,0.012299]
[1625529257439,0.24057544,33721.0,33719.0,0.071299]
[1625529257889,0.24057544,33721.0,33720.0,0.01229872]
[1625529257987,0.24057544,33721.0,33720.0,0.07129872]
[1625529258089,0.24057544,33721.0,33720.0,0.13029872]
[1625529258553,0.24057544,33722.0,33720.0,0.13029872]
[1625529258554,5.088e-05,33722.0,33720.0,0.13029872]
[1625529258647,0.24057544,33726.0,33720.0,0.13029872]
[1625529258743,0.05548718,33735.0,33720.0,0.13029872]
[1625529258840,0.29606262,33735.0,33734.0,0.48115088]
[1625529258943,0.29606262,33735.0,33734.0,0.54015088]
[1625529259041,0.29606262,33735.0,33734.0,0.81736088]
[1625529259290,0.29606262,33735.0,33734.0,0.82965799]
[1625529259492,0.29606262,33735.0,33734.0,0.49591796]
[1625529260092,0.29606262,33735.0,33734.0,0.4783516]
[1625529261344,0.29606262,33735.0,33734.0,0.5373516]
[1625529264851,0.24057544,33741.0,33734.0,0.5373516]
[1625529264953,0.24057544,33741.0,33734.0,0.77792704]
[1625529265252,0.24057544,33741.0,33735.0,0.01229306]
[1625529265352,0.24057544,33741.0,33735.0,0.13029306]
[1625529265653,0.24057544,33753.0,33735.0,0.13029306]
[1625529265752,0.29957544,33753.0,33736.0,0.01229311]
[1625529265853,0.29957544,33753.0,33736.0,0.13029311]
[1625529265955,0.24057544,33753.0,33736.0,0.13029311]
[1625529266165,0.80548838,33754.0,33736.0,0.13029311]
[1625529266281,0.37931837,33755.0,33737.0,0.01229119]
[1625529266370,0.32231837,33755.0,33737.0,0.51229119]
[1625529266465,0.32231837,33755.0,33737.0,1.57226119]
[1625529266555,0.09232398,33757.0,33737.0,1.57226119]
[1625529266655,1.01503557,33759.0,33751.0,5.06126]
[1625529266755,1.01503557,33759.0,33751.0,5.12026]
[1625529266855,1.01503557,33759.0,33752.0,0.00351129]
[1625529266955,1.01503557,33759.0,33758.0,1.25742176]
[1625529267055,0.48466526,33765.0,33758.0,1.31642176]
[1625529267156,0.48466526,33765.0,33758.0,1.37542176]
[1625529267357,0.48466526,33765.0,33759.0,0.00351072]
[1625529267455,0.48466526,33765.0,33759.0,0.06251072]
[1625529267557,0.24057544,33768.0,33759.0,0.06251072]
[1625529267558,0.24057544,33768.0,33759.0,0.12151072]
[1625529267857,0.057,33770.0,33759.0,0.12151072]
[1625529267959,0.057,33770.0,33760.0,0.00351053]
[1625529268059,0.057,33770.0,33760.0,0.12151053]
[1625529268260,0.24057544,33771.0,33760.0,0.12151053]
[1625529268458,0.24057544,33771.0,33761.0,0.00351044]
[1625529268560,0.24057544,33771.0,33761.0,0.12151044]
[1625529268758,0.24057544,33771.0,33761.0,0.118]
[1625529268962,0.24057544,33771.0,33770.0,0.48115088]
[1625529269059,0.24057544,33771.0,33770.0,0.90486088]
[1625529269211,0.24057544,33771.0,33770.0,0.42371]
[1625529269409,0.24057544,33771.0,33770.0,0.36471]
[1625529269610,0.29757544,33771.0,33770.0,0.36471]
[1625529269709,0.29757544,33771.0,33770.0,0.01370439]
[1625529269710,0.35657544,33771.0,33770.0,0.01370439]
[1625529269811,0.35657544,33771.0,33766.0,0.21187]
[1625529270110,0.35657544,33771.0,33766.0,0.27087]
[1625529270661,0.35657544,33771.0,33766.0,0.21187]
[1625529270761,0.35657544,33771.0,33766.0,0.27087]
[1625529270961,0.24057544,33767.0,33766.0,0.27087]
[1625529271413,0.24057544,33767.0,33766.0,0.059]
[1625529271518,0.55403544,33767.0,33764.0,0.24057544]
[1625529271632,0.55403544,33767.0,33758.0,0.24057544]
[1625529271733,0.61303544,33767.0,33758.0,0.24057544]
[1625529271843,0.67203544,33767.0,33758.0,0.24057544]
[1625529272225,0.057,33764.0,33758.0,0.24057544]
[1625529272316,0.057,33764.0,33737.0,0.5]
[1625529272420,0.175,33764.0,33737.0,0.559]
[1625529272514,0.175,33764.0,33737.0,0.618]
[1625529272721,0.175,33764.0,33737.0,0.118]
[1625529272722,0.057,33762.0,33737.0,0.118]
[1625529272915,0.24057544,33754.0,33753.0,0.24057544]
[1625529273117,0.53977544,33754.0,33753.0,0.35857544]
[1625529273214,0.53977544,33754.0,33753.0,0.24057544]
[1625529273315,0.59677544,33754.0,33753.0,0.24057544]
[1625529273869,0.59677544,33754.0,33753.0,0.29957544]
[1625529274471,0.53977544,33754.0,33753.0,0.29957544]
[1625529274573,0.59677544,33754.0,33753.0,0.24057544]
[1625529274824,0.65577544,33754.0,33753.0,0.24057544]
[1625529274924,0.89635088,33754.0,33753.0,0.24057544]
[1625529275628,0.83735088,33754.0,33753.0,0.24057544]
[1625529275975,0.53815088,33754.0,33753.0,0.24057544]
[1625529276175,0.48115088,33754.0,33753.0,0.24057544]
[1625529276300,0.24057544,33754.0,33753.0,0.29957544]
[1625529276382,1.30533094,33760.0,33753.0,0.53379544]
[1625529276476,1.30533094,33760.0,33753.0,0.59279544]
[1625529276725,1.46847692,33763.0,33753.0,0.53379544]
[1625529276826,1.30685131,33764.0,33753.0,0.53379544]
[1625529276927,1.30685131,33764.0,33753.0,0.59279544]
[1625529277029,1.30685131,33764.0,33763.0,0.24057544]
[1625529277127,1.30685131,33764.0,33763.0,0.57857544]
[1625529277229,1.54869467,33767.0,33763.0,0.57857544]
[1625529277329,0.057,33765.0,33763.0,0.57857544]
[1625529277428,0.057,33765.0,33763.0,0.63757544]
[1625529277530,0.057,33765.0,33763.0,0.57857544]
[1625529278284,0.116,33765.0,33763.0,0.57857544]
[1625529279434,0.057,33765.0,33763.0,0.63757544]
[1625529279639,1.30700187,33766.0,33763.0,0.63757544]
[1625529279936,1.30700187,33766.0,33763.0,0.69657544]
[1625529280135,1.30700187,33766.0,33765.0,4.45581797]
[1625529280236,1.30700187,33766.0,33765.0,4.51481797]
[1625529280636,0.24057544,33767.0,33765.0,4.51481797]
[1625529281036,0.24057544,33767.0,33766.0,0.24057544]
[1625529281237,0.24057544,33767.0,33766.0,0.29957544]
[1625529281336,0.29757544,33767.0,33766.0,0.24057544]
[1625529281840,0.24057544,33767.0,33766.0,0.29957544]
[1625529285496,0.24057544,33767.0,33766.0,0.24057544]
[1625529286196,0.58058544,33767.0,33763.0,0.24057544]
[1625529286396,0.69658544,33767.0,33763.0,0.24057544]
[1625529286497,0.75558544,33767.0,33763.0,0.24057544]
[1625529286999,1.14195669,33766.0,33763.0,0.24057544]
[1625529287099,0.24057544,33764.0,33763.0,0.24057544]
[1625529287198,0.29757544,33764.0,33763.0,0.24057544]
[1625529287299,1.4977643,33764.0,33757.0,0.24057544]
[1625529287400,1.4387643,33764.0,33757.0,0.24057544]
[1625529287500,1.4977643,33764.0,33757.0,0.24057544]
[1625529287600,1.4977643,33764.0,33757.0,0.29957544]
[1625529287700,1.4977643,33764.0,33757.0,0.24057544]
[1625529287799,1.5567643,33764.0,33757.0,0.24057544]
[1625529288404,1.4977643,33764.0,33757.0,0.29957544]
[1625529288503,1.4387643,33764.0,33757.0,0.29957544]
[1625529288603,1.4387643,33764.0,33757.0,0.35857544]
[1625529289104,1.4387643,33764.0,33761.0,0.24057544]
[1625529289204,1.4387643,33764.0,33761.0,0.50657544]
[1625529289305,1.4387643,33764.0,33761.0,0.56557544]
[1625529289405,0.24057544,33764.0,33761.0,0.56557544]
[1625529290758,0.24057544,33764.0,33762.0,0.00351029]
[1625529290858,0.24057544,33764.0,33762.0,0.12151029]
[1625529291110,0.24057544,33764.0,33762.0,0.06251029]
[1625529291207,0.29757544,33764.0,33762.0,0.06251029]
[1625529291309,0.29757544,33764.0,33762.0,0.059]
[1625529292559,0.29757544,33764.0,33761.0,0.24057544]
[1625529292671,0.53053544,33764.0,33761.0,0.24057544]
[1625529292959,0.58953544,33764.0,33761.0,0.24057544]
[1625529293110,0.24057544,33762.0,33761.0,0.24057544]
[1625529293211,0.29757544,33762.0,33761.0,0.24057544]
[1625529293362,0.35657544,33762.0,33761.0,0.24057544]
[1625529293863,0.41557544,33762.0,33761.0,0.24057544]
[1625529294112,0.35657544,33762.0,33761.0,0.24057544]
[1625529294210,0.41557544,33762.0,33761.0,0.24057544]
[1625529294313,0.35657544,33762.0,33761.0,0.24057544]
[1625529294461,0.29757544,33762.0,33761.0,0.24057544]
[1625529294760,0.41557544,33762.0,33761.0,0.24057544]
[1625529294861,0.41557544,33762.0,33761.0,0.24408647]
[1625529294962,0.35657544,33762.0,33761.0,0.24408647]
[1625529295612,0.35657544,33762.0,33761.0,0.00351103]
[1625529296166,0.35657544,33762.0,33757.0,0.24057544]
[1625529296467,0.41557544,33762.0,33761.0,0.00351111]
[1625529296666,0.41557544,33762.0,33737.0,0.0899]
[1625529296765,0.41557544,33762.0,33732.0,0.0886]
[1625529296867,0.41557544,33762.0,33746.0,0.9852]
[1625529296967,3.83125114,33762.0,33746.0,0.9852]
[1625529297065,3.83125114,33762.0,33746.0,0.9262]
[1625529297168,0.53815088,33747.0,33746.0,0.9262]
[1625529297267,0.76971088,33747.0,33746.0,0.9262]
[1625529297467,0.82871088,33747.0,33746.0,0.92971197]
[1625529297568,0.88771088,33747.0,33746.0,0.92971197]
[1625529297670,0.88771088,33747.0,33746.0,0.00351197]
[1625529297769,0.82871088,33747.0,33746.0,0.00351197]
[1625529297874,0.88771088,33747.0,33746.0,0.00351197]
[1625529298069,0.88771088,33747.0,33737.0,0.00351271]
[1625529298276,0.057,33745.0,33734.0,0.00351274]
[1625529298374,0.116,33745.0,33734.0,0.06251274]
[1625529298475,0.175,33745.0,33734.0,0.06251274]
[1625529298575,0.175,33745.0,33738.0,0.00351285]
[1625529298676,0.116,33745.0,33738.0,0.00351285]
[1625529298775,0.175,33745.0,33738.0,0.00351285]
[1625529298880,0.175,33745.0,33735.0,0.00351296]
[1625529298975,1.14647537,33745.0,33735.0,0.00351296]
[1625529299077,1.14647537,33745.0,33719.0,1.8708]
[1625529299182,0.53815088,33734.0,33728.0,0.24057544]
[1625529299276,0.79854088,33734.0,33733.0,0.29957544]
[1625529299581,0.74154088,33734.0,33733.0,0.29957544]
[1625529299681,0.50096544,33734.0,33733.0,0.36208841]
[1625529300229,0.55796544,33734.0,33733.0,0.36208841]
[1625529300329,0.29757544,33734.0,33733.0,0.36208841]
[1625529300728,0.29757544,33734.0,33733.0,0.30308841]
[1625529300928,0.29757544,33734.0,33733.0,0.36208841]
[1625529301230,0.24057544,33734.0,33733.0,0.36208841]
[1625529302479,0.24057544,33734.0,33733.0,0.30308841]
[1625529302781,0.24057544,33734.0,33733.0,0.24408841]
[1625529304683,0.29757544,33734.0,33733.0,0.24408841]
[1625529305885,0.24057544,33734.0,33733.0,0.24408841]
[1625529306086,0.24057544,33734.0,33733.0,0.30308841]
[1625529307037,0.24057544,33734.0,33733.0,0.36208841]
[1625529307237,0.24057544,33734.0,33733.0,0.30308841]
[1625529307437,0.29757544,33734.0,33733.0,0.30308841]
[1625529307537,0.29757544,33734.0,33733.0,0.24408841]
[1625529307739,0.24057544,33734.0,33733.0,0.30308841]
[1625529307941,0.24057544,33734.0,33733.0,0.36208841]
[1625529308039,0.24057544,33734.0,33733.0,0.30308841]
[1625529308891,0.24057544,33734.0,33733.0,0.29957544]
[1625529309192,0.24057544,33734.0,33733.0,0.35857544]
[1625529309545,0.24057544,33734.0,33733.0,0.3620883]
[1625529311244,0.24057544,33734.0,33733.0,0.60266374]
[1625529311547,0.24057544,33739.0,33733.0,0.60266374]
[1625529311648,0.24057544,33739.0,33738.0,4.1726]
[1625529311757,0.24057544,33739.0,33738.0,4.52586]
[1625529311862,0.24057544,33743.0,33738.0,4.58486]
[1625529311946,0.081622,33744.0,33738.0,4.58837244]
[1625529312197,0.081622,33744.0,33738.0,4.58486]
[1625529312303,0.081622,33744.0,33739.0,0.059]
[1625529312397,0.9256,33770.0,33739.0,0.118]
[1625529312398,0.13876615,33750.0,33739.0,0.118]
[1625529312499,0.13876615,33750.0,33740.0,0.00351216]
[1625529312608,0.13876615,33750.0,33740.0,0.06251216]
[1625529312701,0.13876615,33750.0,33740.0,0.12151216]
[1625529312810,0.19776615,33750.0,33740.0,0.118]
[1625529312905,0.116,33750.0,33740.0,0.118]
[1625529313209,0.25679557,33750.0,33749.0,0.24057544]
[1625529313605,2.2969727,33750.0,33749.0,0.24057544]
[1625529314555,2.2969727,33750.0,33745.0,0.24057544]
[1625529314651,2.5479527,33750.0,33745.0,0.24057544]
[1625529315002,3.85343987,33750.0,33745.0,0.24057544]
[1625529315201,0.24057544,33746.0,33745.0,0.24057544]
[1625529315304,0.41557544,33746.0,33745.0,0.24057544]
[1625529315555,2.53884015,33746.0,33745.0,0.24057544]
[1625529315801,2.53884015,33746.0,33736.0,0.24057544]
[1625529315904,2.53884015,33746.0,33736.0,0.29957544]
[1625529316153,2.47984015,33746.0,33736.0,0.35857544]
[1625529316254,2.42084015,33746.0,33736.0,0.35857544]
[1625529316607,2.42084015,33746.0,33736.0,0.29957544]
[1625529316706,0.08185178,33742.0,33736.0,0.29957544]
[1625529317305,0.24057544,33740.0,33736.0,0.29957544]
[1625529317606,0.24057544,33740.0,33736.0,5.17977544]
[1625529317708,0.08191014,33741.0,33736.0,5.17977544]
[1625529317808,0.08191014,33741.0,33736.0,5.44287544]
[1625529318261,0.32259043,33746.0,33736.0,5.5298792]
[1625529318961,0.32259043,33746.0,33737.0,0.00351195]
[1625529319062,0.32259043,33746.0,33737.0,0.12151195]
[1625529319263,0.32259043,33746.0,33745.0,0.24057544]
[1625529319363,0.24057544,33746.0,33745.0,0.24057544]
[1625529320165,0.24057544,33746.0,33745.0,0.29957544]
[1625529320466,0.3227047,33746.0,33745.0,0.29957544]
[1625529320565,0.3227047,33746.0,33745.0,0.24057544]
[1625529321167,0.24057544,33746.0,33745.0,0.24057544]
[1625529321668,0.29757544,33746.0,33745.0,0.24057544]
[1625529322420,1.28237538,33746.0,33745.0,0.24057544]
[1625529322721,0.29757544,33746.0,33745.0,0.24057544]
[1625529324276,0.29757544,33746.0,33745.0,0.29957544]
[1625529326631,0.95435957,33746.0,33745.0,0.29957544]
[1625529326732,0.95435957,33746.0,33745.0,0.30308757]
[1625529326995,0.95435957,33746.0,33745.0,0.29957544]
[1625529327184,1.93920727,33746.0,33745.0,0.29957544]
[1625529328185,0.95435957,33746.0,33745.0,0.29957544]
[1625529328285,0.95435957,33746.0,33745.0,0.52596544]
[1625529328585,0.95435957,33746.0,33745.0,0.52947763]
[1625529329038,1.93971218,33746.0,33745.0,0.52947763]
[1625529329638,1.93971218,33746.0,33745.0,0.52596544]
[1625529329989,1.93971218,33746.0,33745.0,0.52947768]
[1625529330289,1.93971218,33746.0,33745.0,0.58847768]
[1625529330390,1.93971218,33746.0,33745.0,0.52947768]
[1625529330693,0.95435957,33746.0,33745.0,0.52947768]
[1625529332248,1.9412587,33746.0,33745.0,0.52947768]
[1625529333499,1.9412587,33746.0,33745.0,0.29957544]
[1625529333698,1.9412587,33746.0,33745.0,0.30308772]
[1625529333950,1.9412587,33746.0,33745.0,0.29957544]
[1625529334101,3.0926461,33746.0,33745.0,0.29957544]
[1625529335553,3.0926461,33746.0,33745.0,0.30308779]
[1625529335854,1.9412587,33746.0,33745.0,0.30308779]
[1625529335955,1.9412587,33746.0,33745.0,0.58712779]
[1625529342017,1.70068326,33746.0,33745.0,0.58712779]
[1625529342116,1.64368326,33746.0,33745.0,0.58712779]
[1625529342772,0.6595916,33747.0,33745.0,0.58712779]
[1625529343124,0.24773253,33746.0,33745.0,0.58712779]
[1625529343221,0.24773253,33746.0,33745.0,0.58361544]
[1625529343371,0.24773253,33746.0,33745.0,0.82419088]
[1625529343523,0.24773253,33746.0,33745.0,0.82770272]
[1625529343824,0.24773253,33746.0,33745.0,0.88670272]
[1625529343925,0.24796691,33747.0,33745.0,0.88670272]
[1625529344274,0.24803794,33748.0,33746.0,0.00351157]
[1625529344373,0.24803794,33748.0,33746.0,0.06251157]
[1625529344474,0.24803794,33748.0,33746.0,0.12151157]
[1625529344827,0.24803794,33748.0,33747.0,0.00351155]
[1625529344925,0.24803794,33748.0,33747.0,0.06251155]
[1625529345278,0.66109699,33749.0,33747.0,0.06251155]
[1625529345375,0.66109699,33749.0,33748.0,0.24057544]
[1625529345525,0.66109699,33749.0,33748.0,0.29957544]
[1625529345626,0.66109699,33749.0,33748.0,0.30308695]
[1625529346729,0.66109699,33749.0,33748.0,0.36208695]
[1625529347082,0.66132887,33750.0,33748.0,0.36208695]
[1625529347482,0.66132887,33750.0,33749.0,0.00351133]
[1625529347582,0.66132887,33750.0,33749.0,0.12151133]
[1625529351443,1.65454287,33750.0,33749.0,0.12151133]
[1625529356206,2.81354812,33750.0,33749.0,0.12151133]
[1625529357009,3.31051046,33750.0,33749.0,0.12151133]
[1625529358259,3.31051046,33750.0,33749.0,0.118]
[1625529358358,3.31051046,33750.0,33749.0,0.1215114]
[1625529359359,3.31051046,33750.0,33749.0,0.118]
[1625529359560,3.31051046,33750.0,33749.0,0.12151145]
[1625529359961,0.24057544,33752.0,33749.0,0.12151145]
[1625529360363,0.24057544,33752.0,33750.0,0.00351145]
[1625529360462,0.24057544,33752.0,33750.0,0.06251145]
[1625529360562,0.24057544,33752.0,33750.0,0.12151145]
[1625529360563,1.56678768,33752.0,33750.0,0.12151145]
[1625529360914,1.56678768,33752.0,33750.0,0.118]
[1625529361114,3.3158408,33751.0,33750.0,0.118]
[1625529361415,3.3158408,33751.0,33750.0,0.1215114]
[1625529361565,3.3158408,33751.0,33750.0,0.36208684]
[1625529366681,2.15536282,33751.0,33750.0,0.62433836]
[1625529367129,2.15536282,33751.0,33750.0,1.7610477]
[1625529367230,2.15536282,33751.0,33750.0,1.58621335]
[1625529367732,1.0043926,33752.0,33750.0,1.58621335]
[1625529367981,1.0043926,33752.0,33751.0,0.00351086]
[1625529368082,1.0043926,33752.0,33751.0,0.06251086]
[1625529368181,1.0043926,33752.0,33751.0,0.12151086]
[1625529368483,0.92197576,33753.0,33751.0,0.12151086]
[1625529368786,0.92197576,33753.0,33752.0,0.00351072]
[1625529368885,0.42147576,33753.0,33752.0,0.06251072]
[1625529368985,0.32947576,33753.0,33752.0,0.12151072]
[1625529369586,0.32947576,33753.0,33752.0,0.45088616]
[1625529369687,1.17802174,33757.0,33752.0,0.45088616]
[1625529369786,1.17802174,33757.0,33754.0,5.1134]
[1625529369886,1.17802174,33757.0,33754.0,5.38647]
[1625529369988,1.17802174,33757.0,33754.0,5.44547]
[1625529370139,1.17802174,33757.0,33755.0,0.00351072]
[1625529370243,1.17802174,33757.0,33756.0,0.08739431]
[1625529370339,1.17802174,33757.0,33756.0,0.14639431]
[1625529370437,1.15182174,33757.0,33756.0,0.20539431]